fUSD/lending_fUSD_20250115
["ID","MTS","AMOUNT","RATE_DAILY","PERIOD"]
[349012760,1736935858540,-500.0,0.00012463,2]
[349012761,1736935858549,-500.0,0.00012463,2]
[349012762,1736935858559,-500.0,0.00012463,2]
[349012763,1736935858569,-500.0,0.00012463,2]
[349012764,1736935858578,-500.0,0.00012463,2]
[349012765,1736935858588,-500.0,0.00012463,2]
[349012766,1736935858598,-687.7,0.00012463,2]
[349012767,1736935858607,-500.0,0.00012463,2]
[349012768,1736935858617,-500.0,0.00012463,2]
[349012769,1736935858627,-780.28,0.00012463,2]
[349012770,1736935858636,-679.57,0.00012463,2]
[349012771,1736935858646,-500.0,0.00012463,2]
[349012772,1736935858656,-500.0,0.00012463,2]
[349012773,1736935858666,-500.0,0.00012463,2]
[349012774,1736935858675,-500.0,0.00012463,2]
[349012775,1736935858684,-500.0,0.00012463,2]
[349012776,1736935858694,-1684.71,0.00012463,2]
[349012777,1736935858704,-500.0,0.00012463,2]
[349012778,1736935858713,-500.0,0.00012463,2]
[349012779,1736935858722,-500.0,0.00012463,2]
[349012780,1736935858732,-500.0,0.00012463,2]
[349012781,1736935858741,-500.0,0.00012463,2]
[349012782,1736935858752,-155.63976809,0.00012463,2]
[349012783,1736935858762,-500.0,0.00012463,2]
[349012784,1736935858772,-835.58,0.00012463,2]
[349012785,1736935858785,-500.0,0.00012463,2]
[349012786,1736935858800,-500.0,0.00012463,2]
[349012787,1736935858815,-500.0,0.00012463,2]
[349012788,1736935858828,-500.0,0.00012463,2]
[349012789,1736935858840,-534.4,0.00012463,2]
[349012790,1736935858855,-500.0,0.00012463,2]
[349012791,1736935858870,-500.0,0.00012463,2]
[349012792,1736935858884,-500.0,0.00012463,2]
[349012793,1736935858897,-939.41,0.00012463,2]
[349012794,1736935858911,-524.84,0.00012463,2]
[349012795,1736935858923,-324.42340257,0.00012463,2]
[349012796,1736935858936,-500.0,0.00012464,2]
[349012797,1736935858948,-500.0,0.00012464,2]
[349012798,1736935858960,-500.0,0.00012464,2]
[349012799,1736935858974,-1331.31,0.00012464,2]
[349012800,1736935858987,-500.0,0.00012464,2]
[349012801,1736935859001,-636.04,0.00012464,2]
[349012802,1736935859014,-500.0,0.00012464,2]
[349012803,1736935859029,-807.75,0.00012464,2]
[349012804,1736935859043,-500.0,0.00012464,2]
[349012805,1736935859058,-500.0,0.00012464,2]
[349012806,1736935859071,-514.47,0.00012464,2]
[349012807,1736935859085,-500.0,0.00012464,2]
[349012808,1736935859099,-500.0,0.00012464,2]
[349012809,1736935859115,-500.0,0.00012464,2]
[349012810,1736935859130,-1633.91,0.00012464,2]
[349012811,1736935859143,-500.0,0.00012464,2]
[349012812,1736935859158,-500.0,0.00012464,2]
[349012813,1736935859173,-706.99,0.00012464,2]
[349012814,1736935859186,-500.0,0.00012464,2]
[349012815,1736935859197,-500.0,0.00012464,2]
[349012816,1736935859210,-500.0,0.00012464,2]
[349012817,1736935859223,-500.0,0.00012464,2]
[349012818,1736935859237,-500.0,0.00012464,2]
[349012819,1736935859251,-702.35,0.00012464,2]
[349012820,1736935859262,-500.0,0.00012464,2]
[349012821,1736935859272,-500.0,0.00012464,2]
[349012822,1736935859284,-512.19,0.00012464,2]
[349012823,1736935859297,-500.0,0.00012464,2]
[349012824,1736935859312,-1487.78,0.00012464,2]
[349012825,1736935859324,-500.0,0.00012464,2]
[349012826,1736935859335,-500.0,0.00012464,2]
[349012827,1736935859347,-500.0,0.00012465,2]
[349012828,1736935859361,-500.0,0.00012465,2]
[349012829,1736935859372,-500.0,0.00012465,2]
[349012830,1736935859384,-500.0,0.00012465,2]
[349012831,1736935859397,-500.0,0.00012465,2]
[349012832,1736935859409,-500.0,0.00012465,2]
[349012833,1736935859421,-413.96392957,0.00012465,2]
[349012834,1736935859432,-935.49,0.00012465,2]
[349012835,1736935859444,-595.88,0.00012465,2]
[349012836,1736935859456,-372.42,0.000127,2]
[349012837,1736935859468,-500.0,0.00012736,2]
[349012838,1736935859479,-500.0,0.00012736,2]
[349012839,1736935859491,-500.0,0.00012736,2]
[349012840,1736935859503,-500.0,0.00012736,2]
[349012841,1736935859514,-500.0,0.00012736,2]
[349012842,1736935859526,-500.0,0.00012737,2]
[349012843,1736935859537,-500.0,0.00012737,2]
[349012844,1736935859549,-500.0,0.00012737,2]
[349012845,1736935859561,-500.0,0.00012737,2]
[349012846,1736935859572,-672.64,0.00012737,2]
[349012847,1736935859584,-303.38447825,0.00012737,2]
[349012848,1736935859595,-500.0,0.00012737,2]
[349012849,1736935859606,-500.0,0.00012737,2]
[349012850,1736935859618,-470.37,0.00012737,2]
[349012851,1736935859630,-500.0,0.00012737,2]
[349012852,1736935859641,-577.31,0.00012737,2]
[349012853,1736935859652,-500.0,0.00012737,2]
[349012854,1736935859664,-968.24,0.00012737,2]
[349012855,1736935859676,-500.0,0.00012737,2]
[349012856,1736935859687,-500.0,0.00012737,2]
[349012857,1736935859699,-500.0,0.00012737,2]
[349012858,1736935859711,-500.0,0.00012737,2]
[349012859,1736935859723,-619.44,0.00012737,2]
[349012860,1736935859735,-500.0,0.00012737,2]
[349012861,1736935859747,-500.0,0.00012737,2]
[349012862,1736935859760,-223.73995224,0.00012737,2]
[349012863,1736935859772,-500.0,0.00012737,2]
[349012864,1736935859784,-500.0,0.00012737,2]
[349012865,1736935859797,-546.21,0.00012737,2]
[349012866,1736935859809,-250.94293652,0.00012737,2]
[349012867,1736935859821,-500.0,0.00012737,2]
[349012868,1736935859833,-500.0,0.00012737,2]
[349012869,1736935859845,-500.0,0.00012737,2]
[349012870,1736935859857,-500.0,0.00012737,2]
[349012871,1736935859869,-500.0,0.00012737,2]
[349012872,1736935859881,-500.0,0.00012737,2]
[349012873,1736935859892,-500.0,0.00012737,2]
[349012874,1736935859904,-500.0,0.00012737,2]
[349012875,1736935859917,-500.0,0.00012737,2]
[349012876,1736935859929,-500.0,0.00012737,2]
[349012877,1736935859940,-500.0,0.00012737,2]
[349012878,1736935859953,-500.0,0.00012737,2]
[349012879,1736935859966,-612.35,0.00012737,2]
[349012880,1736935859977,-500.0,0.00012737,2]
[349012881,1736935859988,-500.0,0.00012737,2]
[349012882,1736935859998,-500.0,0.00012737,2]
[349012883,1736935860010,-500.0,0.00012737,2]
[349012884,1736935860022,-500.0,0.00012737,2]
[349012885,1736935860034,-500.0,0.00012737,2]
[349012886,1736935860048,-687.7,0.00012737,2]
[349012887,1736935860061,-500.0,0.00012737,2]
[349012888,1736935860073,-500.0,0.00012737,2]
[349012889,1736935860086,-780.28,0.00012737,2]
[349012890,1736935860098,-679.57,0.00012737,2]
[349012891,1736935860111,-416.71806221,0.00012737,2]
[349012892,1736935860126,-500.0,0.00012737,2]
[349012893,1736935860137,-500.0,0.00012737,2]
[349012894,1736935860149,-500.0,0.00012737,2]
[349012895,1736935860164,-500.0,0.00012737,2]
[349012896,1736935860177,-1684.71,0.00012737,2]
[349012897,1736935860190,-500.0,0.00012737,2]
[349012898,1736935860203,-500.0,0.00012737,2]
[349012899,1736935860215,-500.0,0.00012737,2]
[349012900,1736935860227,-500.0,0.00012737,2]
[349012901,1736935860239,-500.0,0.00012737,2]
[349012902,1736935860251,-500.0,0.00012737,2]
[349012903,1736935860263,-835.58,0.00012737,2]
[349012904,1736935860276,-231.42298373,0.00012737,2]
[349012905,1736935860288,-500.0,0.00012737,2]
[349012906,1736935860300,-500.0,0.00012737,2]
[349012907,1736935860315,-500.0,0.00012737,2]
[349012908,1736935860328,-534.4,0.00012737,2]
[349012909,1736935860339,-500.0,0.00012737,2]
[349012910,1736935860351,-500.0,0.00012737,2]
[349012911,1736935860363,-500.0,0.00012737,2]
[349012912,1736935860375,-939.41,0.00012737,2]
[349012913,1736935860387,-524.84,0.00012737,2]
[349012914,1736935860399,-500.0,0.00012738,2]
[349012915,1736935860411,-500.0,0.00012738,2]
[349012916,1736935860424,-500.0,0.00012738,2]
[349012917,1736935860437,-1331.31,0.00012738,2]
[349012918,1736935860447,-500.0,0.00012738,2]
[349012919,1736935860459,-636.04,0.00012738,2]
[349012920,1736935860473,-529.79,0.00012738,2]
[349012921,1736935860491,-807.75,0.00012738,2]
[349012922,1736935860514,-500.0,0.00012738,2]
[349012923,1736935860525,-500.0,0.00012738,2]
[349012924,1736935860536,-514.47,0.00012738,2]
[349012925,1736935860548,-500.0,0.00012738,2]
[349012926,1736935860562,-500.0,0.00012738,2]
[349012927,1736935860575,-500.0,0.00012738,2]
[349012928,1736935860588,-1633.91,0.00012738,2]
[349012929,1736935860600,-500.0,0.00012738,2]
[349012930,1736935860623,-500.0,0.00012738,2]
[349012931,1736935860646,-706.99,0.00012738,2]
[349012932,1736935860657,-500.0,0.00012738,2]
[349012933,1736935860877,-500.0,0.00012738,2]
[349012934,1736935860888,-500.0,0.00012738,2]
[349012935,1736935860898,-500.0,0.00012738,2]
[349012936,1736935860907,-500.0,0.00012738,2]
[349012937,1736935860916,-702.35,0.00012738,2]
[349012938,1736935860927,-500.0,0.00012738,2]
[349012939,1736935860936,-512.19,0.00012738,2]
[349012940,1736935860946,-500.0,0.00012738,2]
[349012941,1736935860956,-500.0,0.00012738,2]
[349012942,1736935860966,-1487.78,0.00012738,2]
[349012943,1736935860976,-266.90945378,0.00012738,2]
[349012944,1736935860986,-500.0,0.00012738,2]
[349012945,1736935860996,-500.0,0.00012739,2]
[349012946,1736935861005,-500.0,0.00012739,2]
[349012947,1736935861015,-500.0,0.00012739,2]
[349012948,1736935861025,-500.0,0.00012739,2]
[349012949,1736935861035,-500.0,0.00012739,2]
[349012950,1736935861045,-935.49,0.00012739,2]
[349012951,1736935861056,-595.88,0.00012739,2]
[349012952,1736935861065,-501.77159115,0.00012797,2]
[349012953,1736935861075,-600.0,0.00013,2]
[349012954,1736935861086,-500.0,0.0001301,2]
[349012955,1736935861096,-500.0,0.0001301,2]
[349012956,1736935861106,-500.0,0.0001301,2]
[349012957,1736935861116,-500.0,0.0001301,2]
[349012958,1736935861128,-500.0,0.0001301,2]
[349012959,1736935861138,-500.0,0.00013011,2]
[349012960,1736935861149,-500.0,0.00013011,2]
[349012961,1736935861159,-500.0,0.00013011,2]
[349012962,1736935861170,-500.0,0.00013011,2]
[349012963,1736935861180,-672.64,0.00013011,2]
[349012964,1736935861190,-500.0,0.00013011,2]
[349012965,1736935861200,-164.62,0.00013011,2]
[349012966,1736935861211,-213.96,0.00013011,2]
[349012967,1736935861221,-968.24,0.00013011,2]
[349012968,1736935861231,-410.1,0.00013011,2]
[349012969,1736935861241,-500.0,0.00013011,2]
[349012970,1736935861250,-500.0,0.00013011,2]
[349012971,1736935861259,-426.96,0.00013011,2]
[349012972,1736935861269,-546.21,0.00013011,2]
[349012973,1736935861279,-500.0,0.00013011,2]
[349012974,1736935861289,-528.53607318,0.00013011,2]
[349012975,1736935861300,-500.0,0.00013011,2]
[349012976,1736935861311,-500.0,0.00013011,2]
[349012977,1736935861322,-500.0,0.00013011,2]
[349012978,1736935861331,-500.0,0.00013011,2]
[349012979,1736935861341,-500.0,0.00013011,2]
[349012980,1736935861351,-500.0,0.00013011,2]
[349012981,1736935861361,-500.0,0.00013011,2]
[349012982,1736935861371,-500.0,0.00013011,2]
[349012983,1736935861381,-500.0,0.00013011,2]
[349012984,1736935861391,-500.0,0.00013011,2]
[349012985,1736935861401,-612.35,0.00013011,2]
[349012986,1736935861412,-500.0,0.00013011,2]
[349012987,1736935861422,-500.0,0.00013011,2]
[349012988,1736935861431,-500.0,0.00013011,2]
[349012989,1736935861440,-500.0,0.00013011,2]
[349012990,1736935861449,-500.0,0.00013011,2]
[349012991,1736935861459,-500.0,0.00013011,2]
[349012992,1736935861469,-687.7,0.00013011,2]
[349012993,1736935861479,-500.0,0.00013011,2]
[349012994,1736935861488,-500.0,0.00013011,2]
[349012995,1736935861499,-780.28,0.00013011,2]
[349012996,1736935861508,-679.57,0.00013011,2]
[349012997,1736935861518,-500.0,0.00013011,2]
[349012998,1736935861527,-500.0,0.00013011,2]
[349012999,1736935861538,-1684.71,0.00013011,2]
[349013000,1736935861547,-500.0,0.00013011,2]
[349013001,1736935861559,-500.0,0.00013011,2]
[349013002,1736935861569,-500.0,0.00013011,2]
[349013003,1736935861579,-500.0,0.00013011,2]
[349013004,1736935861587,-835.58,0.00013011,2]
[349013005,1736935861596,-500.0,0.00013011,2]
[349013006,1736935861606,-534.4,0.00013011,2]
[349013007,1736935861615,-182.8,0.00013011,2]
[349013008,1736935861624,-472.4,0.00013011,2]
[349013009,1736935861635,-939.41,0.00013011,2]
[349013010,1736935861644,-524.84,0.00013011,2]
[349013011,1736935861654,-373.73714648,0.00013012,2]
[349013012,1736935861665,-500.0,0.00013012,2]
[349013013,1736935861675,-631.26,0.00013012,2]
[349013014,1736935861685,-1331.31,0.00013012,2]
[349013015,1736935861696,-636.04,0.00013012,2]
[349013016,1736935861705,-807.75,0.00013012,2]
[349013017,1736935861716,-500.0,0.00013012,2]
[349013018,1736935861725,-514.47,0.00013012,2]
[349013019,1736935861735,-500.0,0.00013012,2]
[349013020,1736935861745,-500.0,0.00013012,2]
[349013021,1736935861756,-500.0,0.00013012,2]
[349013022,1736935861767,-1633.91,0.00013012,2]
[349013023,1736935861776,-500.0,0.00013012,2]
[349013024,1736935861787,-500.0,0.00013012,2]
[349013025,1736935861798,-706.99,0.00013012,2]
[349013026,1736935861810,-500.0,0.00013012,2]
[349013027,1736935861822,-500.0,0.00013012,2]
[349013028,1736935861832,-500.0,0.00013012,2]
[349013029,1736935861842,-500.0,0.00013012,2]
[349013030,1736935861851,-702.35,0.00013012,2]
[349013031,1736935861861,-500.0,0.00013012,2]
[349013032,1736935861870,-512.19,0.00013012,2]
[349013033,1736935861880,-500.0,0.00013012,2]
[349013034,1736935861891,-283.99,0.00013012,2]
[349013035,1736935861901,-1487.78,0.00013012,2]
[349013036,1736935861912,-500.0,0.00013013,2]
[349013037,1736935861922,-500.0,0.00013013,2]
[349013038,1736935861932,-500.0,0.00013013,2]
[349013039,1736935861943,-500.0,0.00013013,2]
[349013040,1736935861953,-500.0,0.00013013,2]
[349013041,1736935861964,-935.49,0.00013013,2]
[349013042,1736935861973,-595.88,0.00013013,2]
[349013043,1736935861983,-501.77159115,0.00013176,2]
[349013044,1736935861993,-502.63534614,0.00013184,2]
[349013045,1736935862002,-500.0,0.00013184,2]
[349013046,1736935862011,-96560.676,0.00013185,2]
[349013047,1736935862022,-500.0,0.00013284,2]
[349013048,1736935862032,-567.36,0.00013284,2]
[349013049,1736935862043,-500.0,0.00013284,2]
[349013050,1736935862053,-500.0,0.00013285,2]
[349013051,1736935862064,-500.0,0.00013285,2]
[349013052,1736935862075,-500.0,0.00013285,2]
[349013053,1736935862085,-500.0,0.00013285,2]
[349013054,1736935862095,-672.64,0.00013285,2]
[349013055,1736935862106,-500.0,0.00013285,2]
[349013056,1736935862117,-968.24,0.00013285,2]
[349013057,1736935862131,-308.8,0.00013285,2]
[349013058,1736935862142,-500.0,0.00013285,2]
[349013059,1736935862152,-546.21,0.00013285,2]
[349013060,1736935862162,-500.0,0.00013285,2]
[349013061,1736935862174,-252.8,0.00013285,2]
[349013062,1736935862184,-500.0,0.00013285,2]
[349013063,1736935862194,-500.0,0.00013285,2]
[349013064,1736935862205,-500.0,0.00013285,2]
[349013065,1736935862216,-612.35,0.00013285,2]
[349013066,1736935862226,-323.92873484,0.00013285,2]
[349013067,1736935862236,-590.32,0.00013285,2]
[349013068,1736935862246,-500.0,0.00013285,2]
[349013069,1736935862256,-687.7,0.00013285,2]
[349013070,1736935862266,-500.0,0.00013285,2]
[349013071,1736935862276,-780.28,0.00013285,2]
[349013072,1736935862287,-679.57,0.00013285,2]
[349013073,1736935862296,-500.0,0.00013285,2]
[349013074,1736935862305,-1684.71,0.00013285,2]
[349013075,1736935862315,-250.02,0.00013285,2]
[349013076,1736935862324,-500.0,0.00013285,2]
[349013077,1736935862335,-835.58,0.00013285,2]
[349013078,1736935862346,-500.0,0.00013285,2]
[349013079,1736935862355,-534.4,0.00013285,2]
[349013080,1736935862364,-939.41,0.00013285,2]
[349013081,1736935862374,-524.84,0.00013285,2]
[349013082,1736935862384,-500.0,0.00013286,2]
[349013083,1736935862394,-500.0,0.00013286,2]
[349013084,1736935862403,-1331.31,0.00013286,2]
[349013085,1736935862413,-636.04,0.00013286,2]
[349013086,1736935862422,-807.75,0.00013286,2]
[349013087,1736935862431,-500.0,0.00013286,2]
[349013088,1736935862441,-514.47,0.00013286,2]
[349013089,1736935862451,-329.66,0.00013286,2]
[349013090,1736935862460,-500.0,0.00013286,2]
[349013091,1736935862470,-558.64,0.00013286,2]
[349013092,1736935862479,-1633.91,0.00013286,2]
[349013093,1736935862489,-500.0,0.00013286,2]
[349013094,1736935862499,-465.00359384,0.00013286,2]
[349013095,1736935862507,-706.99,0.00013286,2]
[349013096,1736935862517,-153.30511898,0.00013286,2]
[349013097,1736935862526,-500.0,0.00013286,2]
[349013098,1736935862537,-500.0,0.00013286,2]
[349013099,1736935862546,-500.0,0.00013286,2]
[349013100,1736935862556,-702.35,0.00013286,2]
[349013101,1736935862566,-500.0,0.00013286,2]
[349013102,1736935862575,-512.19,0.00013286,2]
[349013103,1736935862585,-500.0,0.00013286,2]
[349013104,1736935862595,-1487.78,0.00013286,2]
[349013105,1736935862604,-500.0,0.00013287,2]
[349013106,1736935862614,-500.0,0.00013287,2]
[349013107,1736935862623,-500.0,0.00013287,2]
[349013108,1736935862633,-500.0,0.00013287,2]
[349013109,1736935862643,-500.0,0.00013287,2]
[349013110,1736935862653,-935.49,0.00013287,2]
[349013111,1736935862662,-595.88,0.00013287,2]
[349013112,1736935862672,-321.92,0.00013413,2]
[349013113,1736935862681,-501.77159115,0.00013555,2]
[349013114,1736935862692,-500.0,0.00013558,2]
[349013115,1736935862702,-500.0,0.00013558,2]
[349013116,1736935862711,-500.0,0.00013559,2]
[349013117,1736935862721,-500.0,0.00013559,2]
[349013118,1736935862731,-500.0,0.00013559,2]
[349013119,1736935862740,-500.0,0.00013559,2]
[349013120,1736935862750,-672.64,0.00013559,2]
[349013121,1736935862761,-500.0,0.00013559,2]
[349013122,1736935862771,-968.24,0.00013559,2]
[349013123,1736935862781,-546.21,0.00013559,2]
[349013124,1736935862792,-500.0,0.00013559,2]
[349013125,1736935862802,-612.35,0.00013559,2]
[349013126,1736935862814,-687.7,0.00013559,2]
[349013127,1736935862824,-780.28,0.00013559,2]
[349013128,1736935862834,-679.57,0.00013559,2]
[349013129,1736935862844,-1684.71,0.00013559,2]
[349013130,1736935862854,-500.0,0.00013559,2]
[349013131,1736935862864,-835.58,0.00013559,2]
[349013132,1736935862874,-500.0,0.00013559,2]
[349013133,1736935862884,-534.4,0.00013559,2]
[349013134,1736935862894,-939.41,0.00013559,2]
[349013135,1736935862904,-524.84,0.00013559,2]
[349013136,1736935862914,-500.0,0.0001356,2]
[349013137,1736935862924,-500.0,0.0001356,2]
[349013138,1736935862933,-1331.31,0.0001356,2]
[349013139,1736935862943,-636.04,0.0001356,2]
[349013140,1736935862953,-807.75,0.0001356,2]
[349013141,1736935862963,-500.0,0.0001356,2]
[349013142,1736935862974,-514.47,0.0001356,2]
[349013143,1736935862984,-500.0,0.0001356,2]
[349013144,1736935862995,-1633.91,0.0001356,2]
[349013145,1736935863005,-500.0,0.0001356,2]
[349013146,1736935863015,-706.99,0.0001356,2]
[349013147,1736935863024,-500.0,0.0001356,2]
[349013148,1736935863033,-500.0,0.0001356,2]
[349013149,1736935863043,-500.0,0.0001356,2]
[349013150,1736935863054,-702.35,0.0001356,2]
[349013151,1736935863064,-500.0,0.0001356,2]
[349013152,1736935863075,-512.19,0.0001356,2]
[349013153,1736935863085,-500.0,0.0001356,2]
[349013154,1736935863095,-1487.78,0.0001356,2]
[349013155,1736935863105,-500.0,0.00013561,2]
[349013156,1736935863115,-500.0,0.00013561,2]
[349013157,1736935863128,-935.49,0.00013561,2]
[349013158,1736935863138,-595.88,0.00013561,2]
[349013159,1736935863148,-584.67,0.00013631,2]
[349013160,1736935863159,-246.82,0.00013656,2]
[349013161,1736935863168,-200.0,0.00013699,2]
[349013162,1736935863179,-168.92,0.000137,2]
[349013163,1736935863190,-200.0,0.00013749,2]
[349013164,1736935863202,-580.94,0.00013832,2]
[349013165,1736935863212,-500.0,0.00013832,2]
[349013166,1736935863223,-500.0,0.00013833,2]
[349013167,1736935863233,-500.0,0.00013833,2]
[349013168,1736935863243,-152.87,0.00013833,2]
[349013169,1736935863253,-500.0,0.00013833,2]
[349013170,1736935863263,-672.64,0.00013833,2]
[349013171,1736935863273,-500.0,0.00013833,2]
[349013172,1736935863283,-968.24,0.00013833,2]
[349013173,1736935863293,-546.21,0.00013833,2]
[349013174,1736935863305,-491.8,0.00013833,2]
[349013175,1736935863315,-612.35,0.00013833,2]
[349013176,1736935863326,-687.7,0.00013833,2]
[349013177,1736935863336,-780.28,0.00013833,2]
[349013178,1736935863346,-679.57,0.00013833,2]
[349013179,1736935863356,-1684.71,0.00013833,2]
[349013180,1736935863367,-835.58,0.00013833,2]
[349013181,1736935863377,-500.0,0.00013833,2]
[349013182,1736935863387,-534.4,0.00013833,2]
[349013183,1736935863397,-939.41,0.00013833,2]
[349013184,1736935863407,-524.84,0.00013833,2]
[349013185,1736935863418,-500.0,0.00013834,2]
[349013186,1736935863427,-500.0,0.00013834,2]
[349013187,1736935863438,-1331.31,0.00013834,2]
[349013188,1736935863448,-636.04,0.00013834,2]
[349013189,1736935863457,-807.75,0.00013834,2]
[349013190,1736935863467,-500.0,0.00013834,2]
[349013191,1736935863477,-514.47,0.00013834,2]
[349013192,1736935863487,-500.0,0.00013834,2]
[349013193,1736935863497,-500.0,0.00013834,2]
[349013194,1736935863507,-1633.91,0.00013834,2]
[349013195,1736935863517,-706.99,0.00013834,2]
[349013196,1736935863526,-500.0,0.00013834,2]
[349013197,1736935863536,-500.0,0.00013834,2]
[349013198,1736935863545,-500.0,0.00013834,2]
[349013199,1736935863556,-702.35,0.00013834,2]
[349013200,1736935863567,-332.76,0.00013834,2]
[349013201,1736935863577,-512.19,0.00013834,2]
[349013202,1736935863587,-500.0,0.00013834,2]
[349013203,1736935863597,-1487.78,0.00013834,2]
[349013204,1736935863608,-500.0,0.00013835,2]
[349013205,1736935863621,-500.0,0.00013835,2]
[349013206,1736935863631,-935.49,0.00013835,2]
[349013207,1736935863641,-595.88,0.00013835,2]
[349013208,1736935863651,-501.77159115,0.00013934,2]
[349013209,1736935863662,-500.0,0.00014106,2]
[349013210,1736935863672,-500.0,0.00014107,2]
[349013211,1736935863681,-500.0,0.00014107,2]
[349013212,1736935863691,-500.0,0.00014107,2]
[349013213,1736935863700,-672.64,0.00014107,2]
[349013214,1736935863711,-500.0,0.00014107,2]
[349013215,1736935863721,-968.24,0.00014107,2]
[349013216,1736935863733,-546.21,0.00014107,2]
[349013217,1736935863744,-612.35,0.00014107,2]
[349013218,1736935863755,-687.7,0.00014107,2]
[349013219,1736935863767,-780.28,0.00014107,2]
[349013220,1736935863777,-679.57,0.00014107,2]
[349013221,1736935863787,-1684.71,0.00014107,2]
[349013222,1736935863797,-835.58,0.00014107,2]
[349013223,1736935863808,-500.0,0.00014107,2]
[349013224,1736935863818,-534.4,0.00014107,2]
[349013225,1736935863827,-939.41,0.00014107,2]
[349013226,1736935863837,-524.84,0.00014107,2]
[349013227,1736935863847,-500.0,0.00014108,2]
[349013228,1736935863858,-500.0,0.00014108,2]
[349013229,1736935863868,-1331.31,0.00014108,2]
[349013230,1736935863878,-636.04,0.00014108,2]
[349013231,1736935863889,-807.75,0.00014108,2]
[349013232,1736935863899,-500.0,0.00014108,2]
[349013233,1736935863911,-514.47,0.00014108,2]
[349013234,1736935863921,-152.89,0.00014108,2]
[349013235,1736935863931,-500.0,0.00014108,2]
[349013236,1736935863943,-1633.91,0.00014108,2]
[349013237,1736935863953,-706.99,0.00014108,2]
[349013238,1736935863963,-500.0,0.00014108,2]
[349013239,1736935863972,-500.0,0.00014108,2]
[349013240,1736935863982,-500.0,0.00014108,2]
[349013241,1736935863992,-702.35,0.00014108,2]
[349013242,1736935864003,-512.19,0.00014108,2]
[349013243,1736935864012,-500.0,0.00014108,2]
[349013244,1736935864022,-1487.78,0.00014108,2]
[349013245,1736935864032,-500.0,0.00014109,2]
[349013246,1736935864042,-500.0,0.00014109,2]
[349013247,1736935864052,-289.1,0.00014109,2]
[349013248,1736935864063,-935.49,0.00014109,2]
[349013249,1736935864074,-595.88,0.00014109,2]
[349013250,1736935864084,-501.77159115,0.00014314,2]
[349013251,1736935864095,-500.0,0.0001438,2]
[349013252,1736935864105,-500.0,0.00014381,2]
[349013253,1736935864115,-500.0,0.00014381,2]
[349013254,1736935864126,-500.0,0.00014381,2]
[349013255,1736935864136,-672.64,0.00014381,2]
[349013256,1736935864146,-500.0,0.00014381,2]
[349013257,1736935864156,-968.24,0.00014381,2]
[349013258,1736935864167,-546.21,0.00014381,2]
[349013259,1736935864178,-612.35,0.00014381,2]